[Event "Titled Tuesday Blitz March 01 Late 2022"]
[White "Zhou, Qiyu"]
[Black "Donatti, Alvaro"]
[WhiteFideId "505161"]
[BlackFideId "3000303"]
[WhiteElo "1925"]
[BlackElo "2138"]
[Result "1-0"]
[Round "06"]
[TimeControl "180+1"]
[Date "2022.03.02"]
[WhiteClock "0:00:04"]
[BlackClock "0:00:01"]

1. e4 {[%clk 0:03:00]}  c5 {[%clk 0:02:58]} 2. Nf3 {[%clk 0:03:00]}  e6 {[%clk 0:02:57]} 3. d4 {[%clk 0:03:01]}  cxd4 {[%clk 0:02:57]} 4. Nxd4 {[%clk 0:03:02]}  Bc5 {[%clk 0:02:57]} 5. Be3 {[%clk 0:03:01]}  Bb6 {[%clk 0:02:54]} 6. c4 {[%clk 0:02:53]}  Nc6 {[%clk 0:02:46]} 7. Nc3 {[%clk 0:02:52]}  Nge7 {[%clk 0:02:42]} 8. Be2 {[%clk 0:02:50]}  O-O {[%clk 0:02:42]} 9. O-O {[%clk 0:02:38]}  f5 {[%clk 0:02:41]} 10. exf5 {[%clk 0:02:33]}  Nxf5 {[%clk 0:02:39]} 11. Nxf5 {[%clk 0:02:33]}  Rxf5 {[%clk 0:02:38]} 12. Bd3 {[%clk 0:02:26]}  Rf7 {[%clk 0:02:33]} 13. c5 {[%clk 0:02:14]}  Bc7 {[%clk 0:02:31]} 14. Nb5 {[%clk 0:01:57]}  Be5 {[%clk 0:02:27]} 15. Rb1 {[%clk 0:01:42]}  a6 {[%clk 0:02:09]} 16. Nd6 {[%clk 0:01:36]}  Bxd6 {[%clk 0:02:09]} 17. cxd6 {[%clk 0:01:37]}  b5 {[%clk 0:02:07]} 18. a3 {[%clk 0:01:15]}  Bb7 {[%clk 0:02:06]} 19. Be4 {[%clk 0:01:13]}  Qh4 {[%clk 0:02:00]} 20. f3 {[%clk 0:01:00]}  Rc8 {[%clk 0:01:41]} 21. Rc1 {[%clk 0:00:52]}  Rff8 {[%clk 0:01:38]} 22. b4 {[%clk 0:00:27]}  Qf6 {[%clk 0:01:35]} 23. Qd2 {[%clk 0:00:20]}  Ba8 {[%clk 0:01:16]} 24. Rc2 {[%clk 0:00:14]}  Ne5 {[%clk 0:01:10]} 25. Bd4 {[%clk 0:00:08]}  Rxc2 {[%clk 0:00:55]} 26. Bxc2 {[%clk 0:00:06]}  Nc4 {[%clk 0:00:31]} 27. Qd3 {[%clk 0:00:06]}  Qh6 {[%clk 0:00:30]} 28. Bb3 {[%clk 0:00:05]}  Nd2 {[%clk 0:00:25]} 29. Rd1 {[%clk 0:00:04]}  Nxb3 {[%clk 0:00:25]} 30. Qxb3 {[%clk 0:00:05]}  Qg6 {[%clk 0:00:20]} 31. Qd3 {[%clk 0:00:02]}  Qg5 {[%clk 0:00:16]} 32. Rf1 {[%clk 0:00:01]}  Qd5 {[%clk 0:00:14]} 33. Qc3 {[%clk 0:00:01]}  g6 {[%clk 0:00:10]} 34. Bc5 {[%clk 0:00:01]}  e5 {[%clk 0:00:08]} 35. Re1 {[%clk 0:00:01]}  e4 {[%clk 0:00:07]} 36. Rxe4 {[%clk 0:00:01]}  Qd1+ {[%clk 0:00:04]} 37. Re1 {[%clk 0:00:01]}  Qd5 {[%clk 0:00:03]} 38. Qe3 {[%clk 0:00:02]}  Bc6 {[%clk 0:00:01]} 39. Qd4 {[%clk 0:00:02]}  Qxd4+ {[%clk 0:00:01]} 40. Bxd4 {[%clk 0:00:03]}  Bd5 {[%clk 0:00:01]} 41. Re7 {[%clk 0:00:04]} 1-0


[Site "https://www.chess.com"]

[Event "Titled Tuesday Blitz March 01 Late 2022"]
[White "Al-Tarboush, Ward"]
[Black "Janturin, Artur"]
[WhiteFideId "7601450"]
[BlackFideId "4130022"]
[WhiteElo "2276"]
[BlackElo "2347"]
[Result "1-0"]
[Round "07"]
[TimeControl "180+1"]
[Date "2022.03.02"]
[WhiteClock "0:02:04"]
[BlackClock "0:00:18"]

1. d4 {[%clk 0:03:00]}  e6 {[%clk 0:02:59]} 2. e4 {[%clk 0:02:59]}  d5 {[%clk 0:02:59]} 3. exd5 {[%clk 0:03:00]}  exd5 {[%clk 0:02:57]} 4. Bd3 {[%clk 0:03:01]}  Bd6 {[%clk 0:02:56]} 5. Nc3 {[%clk 0:03:01]}  c6 {[%clk 0:02:55]} 6. Nge2 {[%clk 0:02:59]}  Nf6 {[%clk 0:02:54]} 7. Bg5 {[%clk 0:02:59]}  O-O {[%clk 0:02:53]} 8. Qd2 {[%clk 0:02:59]}  b5 {[%clk 0:02:44]} 9. f3 {[%clk 0:02:57]}  a5 {[%clk 0:02:40]} 10. O-O-O {[%clk 0:02:54]}  a4 {[%clk 0:02:39]} 11. Rdg1 {[%clk 0:02:54]}  b4 {[%clk 0:02:39]} 12. Nd1 {[%clk 0:02:53]}  b3 {[%clk 0:02:39]} 13. a3 {[%clk 0:02:53]}  bxc2 {[%clk 0:02:33]} 14. Qxc2 {[%clk 0:02:54]}  h6 {[%clk 0:01:51]} 15. h4 {[%clk 0:02:54]}  Ba6 {[%clk 0:01:45]} 16. g4 {[%clk 0:02:52]}  Bxd3 {[%clk 0:01:43]} 17. Qxd3 {[%clk 0:02:53]}  Re8 {[%clk 0:01:25]} 18. Bxh6 {[%clk 0:02:49]}  gxh6 {[%clk 0:01:07]} 19. g5 {[%clk 0:02:49]}  Kf8 {[%clk 0:00:40]} 20. gxf6 {[%clk 0:02:46]}  Qxf6 {[%clk 0:00:41]} 21. Nec3 {[%clk 0:02:42]}  Nd7 {[%clk 0:00:36]} 22. Qh7 {[%clk 0:02:41]}  Nb6 {[%clk 0:00:24]} 23. Kb1 {[%clk 0:02:19]}  Nc4 {[%clk 0:00:23]} 24. Ka2 {[%clk 0:02:19]}  Rab8 {[%clk 0:00:22]} 25. Nxa4 {[%clk 0:02:13]}  Re2 {[%clk 0:00:22]} 26. Rg8+ {[%clk 0:02:09]}  Ke7 {[%clk 0:00:22]} 27. Rxb8 {[%clk 0:02:09]}  Bxb8 {[%clk 0:00:23]} 28. Qd3 {[%clk 0:02:05]}  Rd2 {[%clk 0:00:21]} 29. Qb3 {[%clk 0:02:03]}  Bd6 {[%clk 0:00:19]} 30. Qb7+ {[%clk 0:02:03]}  Kf8 {[%clk 0:00:19]} 31. Qc8+ {[%clk 0:02:03]}  Kg7 {[%clk 0:00:18]} 32. Rg1+ {[%clk 0:02:04]} 1-0


[Site "https://www.chess.com"]

[Event "Titled Tuesday Blitz March 01 Late 2022"]
[White "Araujo Filho, Luiz Antonio Coel"]
[Black "Atanejhad, Sahebali"]
[WhiteFideId "2130661"]
[BlackFideId "12506664"]
[WhiteElo "2208"]
[BlackElo "1978"]
[Result "0-1"]
[Round "07"]
[TimeControl "180+1"]
[Date "2022.03.02"]
[WhiteClock "0:00:04"]
[BlackClock "0:00:07"]

1. d4 {[%clk 0:03:00]}  Nf6 {[%clk 0:02:58]} 2. Nf3 {[%clk 0:02:59]}  c5 {[%clk 0:02:58]} 3. e3 {[%clk 0:02:57]}  d5 {[%clk 0:02:57]} 4. c3 {[%clk 0:02:54]}  Nc6 {[%clk 0:02:57]} 5. Nbd2 {[%clk 0:02:54]}  Bg4 {[%clk 0:02:58]} 6. Qa4 {[%clk 0:02:51]}  Bd7 {[%clk 0:02:49]} 7. Qd1 {[%clk 0:02:50]}  Bg4 {[%clk 0:02:45]} 8. Qa4 {[%clk 0:02:50]}  Bd7 {[%clk 0:02:42]} 9. Qd1 {[%clk 0:02:50]}  Qc7 {[%clk 0:02:38]} 10. Bd3 {[%clk 0:02:46]}  e5 {[%clk 0:02:36]} 11. dxe5 {[%clk 0:02:44]}  Nxe5 {[%clk 0:02:37]} 12. Nxe5 {[%clk 0:02:44]}  Qxe5 {[%clk 0:02:33]} 13. O-O {[%clk 0:02:44]}  Bd6 {[%clk 0:02:32]} 14. Nf3 {[%clk 0:02:43]}  Qh5 {[%clk 0:02:32]} 15. Re1 {[%clk 0:01:58]}  O-O-O {[%clk 0:02:23]} 16. Bf1 {[%clk 0:01:28]}  Ne4 {[%clk 0:02:04]} 17. h3 {[%clk 0:01:10]}  Bc6 {[%clk 0:01:42]} 18. Qc2 {[%clk 0:01:01]}  g5 {[%clk 0:01:26]} 19. Nh2 {[%clk 0:00:54]}  f5 {[%clk 0:01:23]} 20. f4 {[%clk 0:00:48]}  g4 {[%clk 0:01:19]} 21. Qe2 {[%clk 0:00:28]}  Qh4 {[%clk 0:01:11]} 22. hxg4 {[%clk 0:00:23]}  Ng3 {[%clk 0:00:55]} 23. Qf2 {[%clk 0:00:14]}  fxg4 {[%clk 0:00:52]} 24. Rd1 {[%clk 0:00:09]}  Rhf8 {[%clk 0:00:43]} 25. b4 {[%clk 0:00:09]}  d4 {[%clk 0:00:33]} 26. cxd4 {[%clk 0:00:08]}  cxb4 {[%clk 0:00:19]} 27. d5 {[%clk 0:00:08]}  Bd7 {[%clk 0:00:17]} 28. Bb2 {[%clk 0:00:08]}  Kb8 {[%clk 0:00:16]} 29. Rac1 {[%clk 0:00:09]}  Bf5 {[%clk 0:00:16]} 30. Bd4 {[%clk 0:00:08]}  Be4 {[%clk 0:00:15]} 31. Rd2 {[%clk 0:00:05]}  h5 {[%clk 0:00:13]} 32. Rb2 {[%clk 0:00:05]}  Nf5 {[%clk 0:00:12]} 33. Qxh4 {[%clk 0:00:04]}  Nxh4 {[%clk 0:00:13]} 34. a3 {[%clk 0:00:04]}  Nf5 {[%clk 0:00:13]} 35. axb4 {[%clk 0:00:03]}  Nxd4 {[%clk 0:00:13]} 36. exd4 {[%clk 0:00:04]}  Bxf4 {[%clk 0:00:13]} 37. Re1 {[%clk 0:00:03]}  Bxd5 {[%clk 0:00:12]} 38. Re7 {[%clk 0:00:03]}  Bxh2+ {[%clk 0:00:11]} 39. Kxh2 {[%clk 0:00:03]}  Rxf1 {[%clk 0:00:12]} 40. b5 {[%clk 0:00:03]}  Rdf8 {[%clk 0:00:10]} 41. b6 {[%clk 0:00:03]}  axb6 {[%clk 0:00:10]} 42. Rxb6 {[%clk 0:00:02]}  R1f2 {[%clk 0:00:10]} 43. Kg3 {[%clk 0:00:03]}  Rxg2+ {[%clk 0:00:09]} 44. Kh4 {[%clk 0:00:04]}  Rh2+ {[%clk 0:00:10]} 45. Kg5 {[%clk 0:00:04]}  g3 {[%clk 0:00:10]} 46. Rd7 {[%clk 0:00:04]}  Bc6 {[%clk 0:00:09]} 47. Rd6 {[%clk 0:00:02]}  g2 {[%clk 0:00:09]} 48. Rdxc6 {[%clk 0:00:03]}  g1=Q+ {[%clk 0:00:08]} 49. Kh6 {[%clk 0:00:04]}  Qe3+ {[%clk 0:00:07]} 0-1


[Site "https://www.chess.com"]

[Event "Titled Tuesday Blitz March 01 Late 2022"]
[White "Ashiev, Eduard"]
[Black "Cagara, Paulina"]
[WhiteFideId "4130090"]
[BlackFideId "1124870"]
[WhiteElo "2004"]
[BlackElo "1828"]
[Result "1/2-1/2"]
[Round "07"]
[TimeControl "180+1"]
[Date "2022.03.02"]
[WhiteClock "0:00:10"]
[BlackClock "0:00:03"]

1. d4 {[%clk 0:03:00]}  f5 {[%clk 0:01:29]} 2. Bg5 {[%clk 0:02:58]}  h6 {[%clk 0:01:28]} 3. Bh4 {[%clk 0:02:56]}  g5 {[%clk 0:01:28]} 4. e3 {[%clk 0:02:55]}  Nf6 {[%clk 0:01:27]} 5. Bg3 {[%clk 0:02:55]}  Bg7 {[%clk 0:01:27]} 6. c4 {[%clk 0:02:53]}  O-O {[%clk 0:01:26]} 7. Nc3 {[%clk 0:02:53]}  c5 {[%clk 0:01:22]} 8. Bd3 {[%clk 0:02:45]}  cxd4 {[%clk 0:01:19]} 9. Nb5 {[%clk 0:02:34]}  dxe3 {[%clk 0:01:13]} 10. fxe3 {[%clk 0:02:31]}  d6 {[%clk 0:01:03]} 11. Ne2 {[%clk 0:02:27]}  Qb6 {[%clk 0:01:01]} 12. O-O {[%clk 0:02:17]}  Ng4 {[%clk 0:00:58]} 13. Kh1 {[%clk 0:02:02]}  a6 {[%clk 0:00:54]} 14. Nbc3 {[%clk 0:01:26]}  Nxe3 {[%clk 0:00:52]} 15. Nd5 {[%clk 0:01:24]}  Nxd5 {[%clk 0:00:38]} 16. cxd5 {[%clk 0:01:24]}  f4 {[%clk 0:00:27]} 17. Bf2 {[%clk 0:01:22]}  Qxb2 {[%clk 0:00:22]} 18. Bd4 {[%clk 0:01:10]}  Bxd4 {[%clk 0:00:20]} 19. Nxd4 {[%clk 0:01:10]}  Nd7 {[%clk 0:00:09]} 20. Rb1 {[%clk 0:01:05]}  Qxa2 {[%clk 0:00:07]} 21. Qh5 {[%clk 0:01:01]}  Ne5 {[%clk 0:00:04]} 22. Qxh6 {[%clk 0:00:43]}  Nxd3 {[%clk 0:00:03]} 23. Qxg5+ {[%clk 0:00:43]}  Kh8 {[%clk 0:00:04]} 24. Qh6+ {[%clk 0:00:24]}  Kg8 {[%clk 0:00:03]} 25. Qg6+ {[%clk 0:00:24]}  Kh8 {[%clk 0:00:03]} 26. Qh6+ {[%clk 0:00:13]}  Kg8 {[%clk 0:00:03]} 27. Qg6+ {[%clk 0:00:13]}  Kh8 {[%clk 0:00:03]} 28. Qh6+ {[%clk 0:00:10]} 1/2-1/2


[Site "https://www.chess.com"]

[Event "Titled Tuesday Blitz March 01 Late 2022"]
[White "Babazada, Khazar"]
[Black "Caruana, Fabiano"]
[WhiteFideId "13413554"]
[BlackFideId "2020009"]
[WhiteElo "2418"]
[BlackElo "2744"]
[Result "0-1"]
[Round "07"]
[TimeControl "180+1"]
[Date "2022.03.01"]
[WhiteClock "0:00:16"]
[BlackClock "0:00:10"]

1. e4 {[%clk 0:03:00]}  e5 {[%clk 0:02:59]} 2. Nf3 {[%clk 0:03:00]}  Nc6 {[%clk 0:03:00]} 3. Bb5 {[%clk 0:03:00]}  a6 {[%clk 0:03:00]} 4. Ba4 {[%clk 0:03:01]}  d6 {[%clk 0:03:01]} 5. O-O {[%clk 0:03:00]}  Bd7 {[%clk 0:03:00]} 6. c3 {[%clk 0:02:59]}  g6 {[%clk 0:02:59]} 7. d4 {[%clk 0:02:59]}  Bg7 {[%clk 0:03:00]} 8. d5 {[%clk 0:02:50]}  Nce7 {[%clk 0:02:58]} 9. c4 {[%clk 0:02:51]}  h6 {[%clk 0:02:56]} 10. Nc3 {[%clk 0:02:50]}  f5 {[%clk 0:02:55]} 11. exf5 {[%clk 0:02:48]}  gxf5 {[%clk 0:02:55]} 12. Re1 {[%clk 0:02:44]}  Nf6 {[%clk 0:02:54]} 13. Bc2 {[%clk 0:02:38]}  O-O {[%clk 0:02:53]} 14. Nh4 {[%clk 0:02:30]}  Qe8 {[%clk 0:02:50]} 15. c5 {[%clk 0:02:06]}  Qf7 {[%clk 0:02:44]} 16. Qf3 {[%clk 0:01:54]}  e4 {[%clk 0:02:37]} 17. Qg3 {[%clk 0:01:50]}  Nh5 {[%clk 0:02:29]} 18. Qh3 {[%clk 0:01:50]}  Rad8 {[%clk 0:02:24]} 19. c6 {[%clk 0:01:44]}  bxc6 {[%clk 0:02:20]} 20. dxc6 {[%clk 0:01:44]}  Be6 {[%clk 0:02:17]} 21. Ne2 {[%clk 0:01:30]}  Nxc6 {[%clk 0:02:00]} 22. g3 {[%clk 0:01:15]}  d5 {[%clk 0:01:51]} 23. Nf4 {[%clk 0:01:12]}  Nxf4 {[%clk 0:01:50]} 24. Bxf4 {[%clk 0:01:13]}  d4 {[%clk 0:01:38]} 25. Bd1 {[%clk 0:01:09]}  d3 {[%clk 0:01:34]} 26. Ng2 {[%clk 0:01:08]}  Qf6 {[%clk 0:01:21]} 27. Bxc7 {[%clk 0:00:56]}  Rc8 {[%clk 0:01:08]} 28. Bd6 {[%clk 0:00:51]}  Rfd8 {[%clk 0:01:06]} 29. Bf4 {[%clk 0:00:52]}  Qxb2 {[%clk 0:00:56]} 30. Bb3 {[%clk 0:00:40]}  Bxb3 {[%clk 0:00:55]} 31. axb3 {[%clk 0:00:41]}  Nd4 {[%clk 0:00:45]} 32. Kh1 {[%clk 0:00:37]}  d2 {[%clk 0:00:28]} 33. Red1 {[%clk 0:00:37]}  Nf3 {[%clk 0:00:15]} 34. Qxf5 {[%clk 0:00:35]}  Qxb3 {[%clk 0:00:14]} 35. Rab1 {[%clk 0:00:18]}  Qd5 {[%clk 0:00:14]} 36. Qg4 {[%clk 0:00:16]}  h5 {[%clk 0:00:13]} 37. Qg6 {[%clk 0:00:16]}  Rc6 {[%clk 0:00:10]} 0-1


[Site "https://www.chess.com"]

[Event "Titled Tuesday Blitz March 01 Late 2022"]
[White "Beerdsen, Thomas"]
[Black "Jobava, Baadur"]
[WhiteFideId "1030108"]
[BlackFideId "13601520"]
[WhiteElo "2585"]
[BlackElo "2617"]
[Result "1-0"]
[Round "07"]
[TimeControl "180+1"]
[Date "2022.03.01"]
[WhiteClock "0:01:36"]
[BlackClock "0:00:01"]

1. e4 {[%clk 0:03:00]}  c6 {[%clk 0:02:59]} 2. d4 {[%clk 0:03:00]}  d5 {[%clk 0:03:00]} 3. f3 {[%clk 0:03:00]}  e6 {[%clk 0:02:59]} 4. Nc3 {[%clk 0:03:00]}  Nf6 {[%clk 0:03:00]} 5. Bd3 {[%clk 0:03:00]}  c5 {[%clk 0:02:57]} 6. Bb5+ {[%clk 0:02:53]}  Nc6 {[%clk 0:02:55]} 7. Nge2 {[%clk 0:02:47]}  dxe4 {[%clk 0:02:46]} 8. fxe4 {[%clk 0:02:43]}  cxd4 {[%clk 0:02:46]} 9. Nxd4 {[%clk 0:02:41]}  Bd7 {[%clk 0:02:46]} 10. Nxc6 {[%clk 0:02:41]}  bxc6 {[%clk 0:02:46]} 11. Bd3 {[%clk 0:02:41]}  Bd6 {[%clk 0:02:43]} 12. O-O {[%clk 0:02:34]}  O-O {[%clk 0:02:38]} 13. Bg5 {[%clk 0:02:18]}  Be5 {[%clk 0:02:34]} 14. Bxf6 {[%clk 0:02:14]}  Bxf6 {[%clk 0:02:31]} 15. e5 {[%clk 0:02:15]}  Bxe5 {[%clk 0:02:16]} 16. Bxh7+ {[%clk 0:02:06]}  Kxh7 {[%clk 0:02:17]} 17. Qh5+ {[%clk 0:02:07]}  Kg8 {[%clk 0:02:18]} 18. Qxe5 {[%clk 0:02:07]}  Qb6+ {[%clk 0:02:18]} 19. Kh1 {[%clk 0:02:07]}  Qxb2 {[%clk 0:02:18]} 20. Rad1 {[%clk 0:02:06]}  Rad8 {[%clk 0:02:14]} 21. Rd3 {[%clk 0:01:52]}  Bc8 {[%clk 0:01:45]} 22. Nd5 {[%clk 0:01:45]}  cxd5 {[%clk 0:00:19]} 23. Qxb2 {[%clk 0:01:45]}  Ba6 {[%clk 0:00:17]} 24. Rg3 {[%clk 0:01:44]}  d4 {[%clk 0:00:15]} 25. Rf4 {[%clk 0:01:40]}  e5 {[%clk 0:00:14]} 26. Rfg4 {[%clk 0:01:40]}  g6 {[%clk 0:00:15]} 27. Qa3 {[%clk 0:01:38]}  Bc8 {[%clk 0:00:12]} 28. Rg5 {[%clk 0:01:36]}  Be6 {[%clk 0:00:09]} 29. Qe7 {[%clk 0:01:36]}  Rfe8 {[%clk 0:00:01]} 30. Qf6 {[%clk 0:01:35]}  Kf8 {[%clk 0:00:01]} 31. Rxg6 {[%clk 0:01:36]} 1-0


[Site "https://www.chess.com"]

[Event "Titled Tuesday Blitz March 01 Late 2022"]
[White "Bellissimo, Joseph F."]
[Black "Saraci, Nderim"]
[WhiteFideId "2609843"]
[BlackFideId "6351921"]
[WhiteElo "2061"]
[BlackElo "2573"]
[Result "0-1"]
[Round "07"]
[TimeControl "180+1"]
[Date "2022.03.01"]
[WhiteClock "0:00:19"]
[BlackClock "0:00:27"]

1. e4 {[%clk 0:03:00]}  c5 {[%clk 0:02:59]} 2. Nf3 {[%clk 0:02:56]}  e6 {[%clk 0:02:58]} 3. c3 {[%clk 0:02:56]}  Nf6 {[%clk 0:02:58]} 4. e5 {[%clk 0:02:56]}  Nd5 {[%clk 0:02:58]} 5. d4 {[%clk 0:02:56]}  Nc6 {[%clk 0:02:56]} 6. Bc4 {[%clk 0:02:52]}  Nb6 {[%clk 0:02:53]} 7. Bd3 {[%clk 0:02:51]}  cxd4 {[%clk 0:02:47]} 8. cxd4 {[%clk 0:02:52]}  d6 {[%clk 0:02:45]} 9. O-O {[%clk 0:02:50]}  Be7 {[%clk 0:02:36]} 10. Nc3 {[%clk 0:02:49]}  dxe5 {[%clk 0:02:36]} 11. dxe5 {[%clk 0:02:49]}  Nb4 {[%clk 0:02:32]} 12. Bb5+ {[%clk 0:02:48]}  Bd7 {[%clk 0:02:31]} 13. Be2 {[%clk 0:02:49]}  Bc6 {[%clk 0:02:29]} 14. Nd4 {[%clk 0:02:47]}  O-O {[%clk 0:02:27]} 15. Be3 {[%clk 0:02:45]}  Rc8 {[%clk 0:02:25]} 16. Bf3 {[%clk 0:02:37]}  Bxf3 {[%clk 0:02:23]} 17. Qxf3 {[%clk 0:02:38]}  N6d5 {[%clk 0:02:22]} 18. Rfd1 {[%clk 0:02:30]}  Nxc3 {[%clk 0:01:27]} 19. Nc6 {[%clk 0:01:43]}  Nxd1 {[%clk 0:01:02]} 20. Nxd8 {[%clk 0:01:42]}  Nxe3 {[%clk 0:01:01]} 21. Qxb7 {[%clk 0:01:29]}  Rfxd8 {[%clk 0:00:45]} 22. Qxe7 {[%clk 0:01:28]}  Nc6 {[%clk 0:00:36]} 23. Qh4 {[%clk 0:01:17]}  Nf5 {[%clk 0:00:34]} 24. Qf4 {[%clk 0:01:16]}  h6 {[%clk 0:00:33]} 25. g3 {[%clk 0:01:12]}  Ncd4 {[%clk 0:00:33]} 26. Qe4 {[%clk 0:01:05]}  Rc2 {[%clk 0:00:32]} 27. b3 {[%clk 0:00:55]}  Ne2+ {[%clk 0:00:32]} 28. Kh1 {[%clk 0:00:51]}  Rdd2 {[%clk 0:00:32]} 29. Qa8+ {[%clk 0:00:39]}  Kh7 {[%clk 0:00:31]} 30. Qxa7 {[%clk 0:00:35]}  Ned4 {[%clk 0:00:30]} 31. Rf1 {[%clk 0:00:34]}  Ne3 {[%clk 0:00:29]} 32. Rg1 {[%clk 0:00:19]}  Rxf2 {[%clk 0:00:27]} 0-1


[Site "https://www.chess.com"]

[Event "Titled Tuesday Blitz March 01 Late 2022"]
[White "Bon, Michael"]
[Black "Donatti, Alvaro"]
[WhiteFideId "620696"]
[BlackFideId "3000303"]
[WhiteElo "2372"]
[BlackElo "2138"]
[Result "0-1"]
[Round "07"]
[TimeControl "180+1"]
[Date "2022.03.02"]
[WhiteClock "0:00:01"]
[BlackClock "0:01:02"]

1. e4 {[%clk 0:03:00]}  c5 {[%clk 0:02:59]} 2. Nf3 {[%clk 0:02:58]}  e6 {[%clk 0:02:59]} 3. d4 {[%clk 0:02:56]}  cxd4 {[%clk 0:02:58]} 4. Nxd4 {[%clk 0:02:57]}  Bc5 {[%clk 0:02:58]} 5. Nc3 {[%clk 0:02:51]}  Ne7 {[%clk 0:02:55]} 6. Be3 {[%clk 0:02:40]}  Bb6 {[%clk 0:02:54]} 7. Ndb5 {[%clk 0:02:24]}  Bxe3 {[%clk 0:02:45]} 8. Nd6+ {[%clk 0:02:22]}  Kf8 {[%clk 0:02:43]} 9. Qf3 {[%clk 0:02:04]}  Bd2+ {[%clk 0:02:33]} 10. Kxd2 {[%clk 0:02:03]}  f6 {[%clk 0:02:33]} 11. e5 {[%clk 0:01:55]}  f5 {[%clk 0:02:30]} 12. g4 {[%clk 0:01:49]}  Nbc6 {[%clk 0:02:27]} 13. gxf5 {[%clk 0:01:27]}  exf5 {[%clk 0:02:14]} 14. Nxf5 {[%clk 0:01:11]}  Nxf5 {[%clk 0:02:13]} 15. Qxf5+ {[%clk 0:01:12]}  Ke8 {[%clk 0:02:13]} 16. Bc4 {[%clk 0:01:00]}  d5 {[%clk 0:02:06]} 17. e6 {[%clk 0:00:48]}  dxc4+ {[%clk 0:02:04]} 18. Kc1 {[%clk 0:00:39]}  Qf6 {[%clk 0:02:01]} 19. Qxf6 {[%clk 0:00:18]}  gxf6 {[%clk 0:01:59]} 20. Re1 {[%clk 0:00:19]}  Rg8 {[%clk 0:01:53]} 21. Nd5 {[%clk 0:00:19]}  Rg2 {[%clk 0:01:46]} 22. Nc7+ {[%clk 0:00:18]}  Ke7 {[%clk 0:01:45]} 23. Nxa8 {[%clk 0:00:19]}  Bxe6 {[%clk 0:01:43]} 24. Nc7 {[%clk 0:00:15]}  Nd4 {[%clk 0:01:43]} 25. Nxe6 {[%clk 0:00:15]}  Nxe6 {[%clk 0:01:42]} 26. b3 {[%clk 0:00:12]}  Rxf2 {[%clk 0:01:39]} 27. bxc4 {[%clk 0:00:12]}  Rxh2 {[%clk 0:01:38]} 28. Rb1 {[%clk 0:00:12]}  b6 {[%clk 0:01:36]} 29. c5 {[%clk 0:00:12]}  Kf7 {[%clk 0:01:27]} 30. cxb6 {[%clk 0:00:11]}  axb6 {[%clk 0:01:27]} 31. Rxb6 {[%clk 0:00:11]}  Nd4 {[%clk 0:01:27]} 32. Rb7+ {[%clk 0:00:12]}  Kg6 {[%clk 0:01:26]} 33. Rc7 {[%clk 0:00:12]}  f5 {[%clk 0:01:22]} 34. a4 {[%clk 0:00:11]}  f4 {[%clk 0:01:21]} 35. a5 {[%clk 0:00:07]}  Rh5 {[%clk 0:01:19]} 36. Re4 {[%clk 0:00:01]}  Nb5 {[%clk 0:01:02]} 0-1


[Site "https://www.chess.com"]

[Event "Titled Tuesday Blitz March 01 Late 2022"]
[White "Boyer, Mahel"]
[Black "Hua, Lefong"]
[WhiteFideId "45102422"]
[BlackFideId "2602253"]
[WhiteElo "2328"]
[BlackElo "2596"]
[Result "0-1"]
[Round "07"]
[TimeControl "180+1"]
[Date "2022.03.01"]
[WhiteClock "0:00:02"]
[BlackClock "0:00:48"]

1. e4 {[%clk 0:03:00]}  c5 {[%clk 0:02:59]} 2. Nf3 {[%clk 0:02:59]}  g6 {[%clk 0:02:59]} 3. c3 {[%clk 0:02:52]}  Nc6 {[%clk 0:02:56]} 4. d4 {[%clk 0:02:51]}  d5 {[%clk 0:02:56]} 5. exd5 {[%clk 0:02:47]}  Qxd5 {[%clk 0:02:55]} 6. Be3 {[%clk 0:02:48]}  cxd4 {[%clk 0:02:50]} 7. cxd4 {[%clk 0:02:44]}  Nf6 {[%clk 0:02:44]} 8. Nc3 {[%clk 0:02:43]}  Qa5 {[%clk 0:02:43]} 9. d5 {[%clk 0:02:35]}  Nb8 {[%clk 0:02:30]} 10. Be2 {[%clk 0:02:18]}  Bg7 {[%clk 0:02:29]} 11. O-O {[%clk 0:02:18]}  O-O {[%clk 0:02:29]} 12. h3 {[%clk 0:02:16]}  Rd8 {[%clk 0:02:26]} 13. Bc4 {[%clk 0:02:16]}  e6 {[%clk 0:02:11]} 14. Bb3 {[%clk 0:00:38]}  Nxd5 {[%clk 0:02:06]} 15. Nxd5 {[%clk 0:00:37]}  exd5 {[%clk 0:02:07]} 16. Bg5 {[%clk 0:00:32]}  Re8 {[%clk 0:02:07]} 17. Qxd5 {[%clk 0:00:20]}  Qxd5 {[%clk 0:02:03]} 18. Bxd5 {[%clk 0:00:21]}  Nc6 {[%clk 0:02:02]} 19. Rfe1 {[%clk 0:00:14]}  Bf5 {[%clk 0:01:59]} 20. Rxe8+ {[%clk 0:00:07]}  Rxe8 {[%clk 0:02:00]} 21. Bxc6 {[%clk 0:00:05]}  bxc6 {[%clk 0:02:00]} 22. Rc1 {[%clk 0:00:06]}  Be4 {[%clk 0:01:58]} 23. b3 {[%clk 0:00:05]}  h6 {[%clk 0:01:52]} 24. Be3 {[%clk 0:00:05]}  a6 {[%clk 0:01:46]} 25. Rc4 {[%clk 0:00:05]}  f5 {[%clk 0:01:32]} 26. Ra4 {[%clk 0:00:05]}  Bd3 {[%clk 0:01:32]} 27. Bd4 {[%clk 0:00:03]}  Bb5 {[%clk 0:01:30]} 28. Ra5 {[%clk 0:00:02]}  Bf8 {[%clk 0:01:29]} 29. a4 {[%clk 0:00:02]}  Bb4 {[%clk 0:01:29]} 30. axb5 {[%clk 0:00:02]}  Bxa5 {[%clk 0:01:29]} 31. bxa6 {[%clk 0:00:03]}  Bb4 {[%clk 0:01:22]} 32. a7 {[%clk 0:00:02]}  c5 {[%clk 0:01:15]} 33. Be3 {[%clk 0:00:03]}  Ra8 {[%clk 0:01:15]} 34. Bxh6 {[%clk 0:00:02]}  Rxa7 {[%clk 0:01:15]} 35. Ne5 {[%clk 0:00:01]}  Ra3 {[%clk 0:01:13]} 36. Be3 {[%clk 0:00:02]}  Rxb3 {[%clk 0:01:12]} 37. Nxg6 {[%clk 0:00:02]}  c4 {[%clk 0:01:11]} 38. Kf1 {[%clk 0:00:01]}  c3 {[%clk 0:01:11]} 39. Ke2 {[%clk 0:00:02]}  c2 {[%clk 0:01:11]} 40. Nh4 {[%clk 0:00:02]}  Rxe3+ {[%clk 0:01:09]} 41. fxe3 {[%clk 0:00:02]}  c1=Q {[%clk 0:01:09]} 42. Nxf5 {[%clk 0:00:03]}  Qd2+ {[%clk 0:01:09]} 43. Kf3 {[%clk 0:00:04]}  Kf7 {[%clk 0:01:08]} 44. g4 {[%clk 0:00:04]}  Kf6 {[%clk 0:01:07]} 45. h4 {[%clk 0:00:03]}  Bc5 {[%clk 0:01:06]} 46. Ke4 {[%clk 0:00:03]}  Qg2+ {[%clk 0:01:05]} 47. Kf4 {[%clk 0:00:03]}  Qf2+ {[%clk 0:01:00]} 48. Ke4 {[%clk 0:00:03]}  Ke6 {[%clk 0:00:56]} 49. h5 {[%clk 0:00:02]}  Qc2+ {[%clk 0:00:53]} 50. Kf4 {[%clk 0:00:02]}  Bd6+ {[%clk 0:00:54]} 51. Kf3 {[%clk 0:00:03]}  Qc6+ {[%clk 0:00:53]} 52. Kf2 {[%clk 0:00:01]}  Kf6 {[%clk 0:00:53]} 53. Nd4 {[%clk 0:00:01]}  Qe4 {[%clk 0:00:52]} 54. g5+ {[%clk 0:00:01]}  Kxg5 {[%clk 0:00:51]} 55. h6 {[%clk 0:00:02]}  Kxh6 {[%clk 0:00:52]} 56. Ne2 {[%clk 0:00:01]}  Kg5 {[%clk 0:00:51]} 57. Nc1 {[%clk 0:00:01]}  Qc2+ {[%clk 0:00:50]} 58. Ne2 {[%clk 0:00:01]}  Kg4 {[%clk 0:00:50]} 59. Kf1 {[%clk 0:00:02]}  Bc5 {[%clk 0:00:48]} 0-1


[Site "https://www.chess.com"]